Workbook

Sheet enter Fringe%
C3: Office of the Governor
C5: Homeland Security Grants Division
C6: PERSONNEL OVERTIME SUMMARY
J7: Note: Use a separate form for each
C8: GRANTEE/AGENCY NAME: | J8: Personnel budget line.
C9: FSR REPORTING PERIOD:
C10: GRANT NUMBER: | H10: Enter Fringe PERCENTAGE
C11: A. | D11: B. | E11: C. | F11: D. | G11: E. | H11: F. | I11: G. | J11: H.
C12: SECTION I. CURRENT PERIOD EXPENDITURES: | G12: (C. x D.) | I12: (E. x F.) | J12: (E. + G.)
C13: First & Last Name | D13: Pay Period Ending Date | E13: Program OT Hours | F13: OT Rate Per Hour | G13: Overtime | H13: Enter Fringe Rate | I13: Fringe | J13: Overtime Plus Fringe
G14: =ROUND(E14*F14,2) -> 0 | I14: =ROUND(G14*H14,2) -> 0 | J14: =+I14+G14 -> 0
G15: =ROUND(E15*F15,2) -> 0 | I15: =ROUND(G15*H15,2) -> 0 | J15: =+I15+G15 -> 0
G16: 0 | I16: 0 | J16: 0
G17: 0 | I17: 0 | J17: 0
G18: 0 | I18: 0 | J18: 0
G19: 0 | I19: 0 | J19: 0
G20: 0 | I20: 0 | J20: 0
G21: 0 | I21: 0 | J21: 0
G22: 0 | I22: 0 | J22: 0
G23: 0 | I23: 0 | J23: 0
G24: 0 | I24: 0 | J24: 0
G25: =ROUND(E25*F25,2) -> 0 | I25: =ROUND(G25*H25,2) -> 0 | J25: =+I25+G25 -> 0
G26: 0 | I26: 0 | J26: 0
G27: 0 | I27: 0 | J27: 0
G28: 0 | I28: 0 | J28: 0
G29: 0 | I29: 0 | J29: 0
G30: 0 | I30: 0 | J30: 0
G31: 0 | I31: 0 | J31: 0
G32: 0 | I32: 0 | J32: 0
G33: 0 | I33: 0 | J33: 0
G34: =ROUND(E34*F34,2) -> 0 | I34: =ROUND(G34*H34,2) -> 0 | J34: =+I34+G34 -> 0
G35: =ROUND(E35*F35,2) -> 0 | I35: =ROUND(G35*H35,2) -> 0 | J35: =+I35+G35 -> 0
C36: ****Place Cursor Here to Insert Row. Then Click Red Button. | G36: 0 | I36: 0 | J36: 0
D37: CURRENT PERIOD EXPENDITURES: | E37: =SUM(E14:E36) -> 0 | G37: =SUM(G14:G36) -> 0 | I37: =SUM(I14:I36) -> 0 | J37: =SUM(J14:J36) -> 0
C39: SECTION II. ADJUSTMENTS:
C40: First & Last Name | D40: Pay Period Ending Date | E40: Program OT Hours | F40: OT Rate Per Hour | G40: Overtime | H40: Enter Fringe Rate | I40: Fringe | J40: Overtime Plus Fringe
G41: =ROUND(E41*F41,2) -> 0 | I41: =ROUND(G41*H41,2) -> 0 | J41: =+I41+G41 -> 0
G42: 0 | I42: 0 | J42: 0
G43: 0 | I43: 0 | J43: 0
G44: =ROUND(E44*F44,2) -> 0 | I44: =ROUND(G44*H44,2) -> 0 | J44: =+I44+G44 -> 0
G45: 0 | I45: 0 | J45: 0
C46: ****Place Cursor Here to Insert Row. Then Click Red Button. | G46: 0 | I46: 0 | J46: 0
D47: TOTAL ADJUSTMENTS: | E47: =SUM(E41:E46) -> 0 | G47: =SUM(G41:G46) -> 0 | I47: =SUM(I41:I46) -> 0 | J47: =SUM(J41:J46) -> 0
D49: ADJUSTMENT EXPLANATION:
B50: To ADD ROWS to Section I or II:
B51: Place Cursor In Last Row indicated above
B52: THEN CLICK BUTTON BELOW
D53: TOTAL THIS PERIOD: | E53: =SUM(E47+E37) -> 0 | G53: =SUM(G47+G37) -> 0 | I53: =SUM(I47+I37) -> 0 | J53: =SUM(J47+J37) -> 0
C55: SECTION III. TOTALS:
C56: ** For PREVIOUS FSR totals: In eGrants, go to Budget Tab, then Budget.Summary Tab. In the Financial Status Report (FSR) Summary-To-Date section next to Personnel, click the + sign for the budget line being reported on this form until you see previous hours and dollars. | F56: Number of Hours Worked | G56: Budget Line OOG_Funds
C57: ** TOTAL FROM PREVIOUS FINANCIAL STATUS REPORT (FSR):
C58: TOTAL FOR THIS FSR PERIOD: | F58: =SUM(E53) -> 0 | G58: =SUM(J53) -> 0
C59: CUMULATIVE TOTALS FOR CURRENT FSR: | F59: =SUM(F57:F58) -> 0 | G59: =SUM(G57:G58) -> 0

Sheet enter Fringe$
C3: Office of the Governor
C5: Homeland Security Grants Division
C6: PERSONNEL OVERTIME SUMMARY
J7: Note: Use a separate form for each
C8: GRANTEE/AGENCY NAME: | J8: Personnel budget line.
C9: FSR REPORTING PERIOD:
C10: GRANT NUMBER: | H10: Enter Fringe DOLLAR AMT
C11: A. | D11: B. | E11: C. | F11: D. | G11: E. | H11: F. | I11: G. | J11: H.
C12: SECTION I. CURRENT PERIOD EXPENDITURES: | G12: (C. x D.) | H12: (G. / E.) | J12: (E. + G.)
C13: First & Last Name | D13: Pay Period Ending Date | E13: Program OT Hours | F13: OT Rate Per Hour | G13: Overtime | H13: Fringe Rate | I13: Enter Fringe Dollars | J13: Overtime Plus Fringe
G14: =ROUND(E14*F14,2) -> 0 | H14: =IF(G14=0,"",I14/G14) ->  | J14: =ROUND(G14+I14,2) -> 0
G15: =ROUND(E15*F15,2) -> 0 | H15: =IF(G15=0,"",I15/G15) ->  | J15: =ROUND(G15+I15,2) -> 0
G16: 0 | J16: 0
G17: 0 | J17: 0
G18: 0 | J18: 0
G19: 0 | J19: 0
G20: 0 | J20: 0
G21: 0 | J21: 0
G22: 0 | J22: 0
G23: 0 | J23: 0
G24: 0 | J24: 0
G25: 0 | J25: 0
G26: 0 | J26: 0
G27: 0 | J27: 0
G28: 0 | J28: 0
G29: 0 | J29: 0
G30: 0 | J30: 0
G31: 0 | J31: 0
G32: 0 | J32: 0
G33: 0 | J33: 0
G34: =ROUND(E34*F34,2) -> 0 | H34: =IF(G34=0,"",I34/G34) ->  | J34: 0
G35: 0 | J35: =ROUND(G35+I35,2) -> 0
C36: ****Place Cursor Here to Insert Row. Then Click Red Button. | G36: 0 | J36: 0
D37: CURRENT PERIOD EXPENDITURES: | E37: =SUM(E14:E36) -> 0 | G37: =SUM(G14:G36) -> 0 | I37: =SUM(I14:I36) -> 0 | J37: =SUM(J14:J36) -> 0
C39: SECTION II. ADJUSTMENTS:
C40: First & Last Name | D40: Pay Period Ending Date | E40: Program OT Hours | F40: OT Rate Per Hour | G40: Overtime | H40: Fringe Rate | I40: Enter Fringe Dollars | J40: Overtime Plus Fringe
G41: =ROUND(E41*F41,2) -> 0 | H41: =IF(G41=0,"",I41/G41) ->  | J41: =ROUND(G41+I41,2) -> 0
G42: 0 | J42: 0
G43: 0 | J43: 0
G44: 0 | J44: 0
G45: =ROUND(E45*F45,2) -> 0 | H45: =IF(G45=0,"",I45/G45) ->  | J45: =ROUND(G45+I45,2) -> 0
C46: ****Place Cursor Here to Insert Row. Then Click Red Button. | G46: 0 | J46: 0
D47: TOTAL ADJUSTMENTS: | E47: =SUM(E41:E46) -> 0 | G47: =SUM(G41:G46) -> 0 | I47: =SUM(I41:I46) -> 0 | J47: =SUM(J41:J46) -> 0
D49: ADJUSTMENT EXPLANATION:
B50: To ADD ROWS to Section I or II:
B51: Place Cursor In Last Row indicated above
B52: THEN CLICK BUTTON BELOW
D53: TOTAL THIS PERIOD: | E53: =SUM(E47+E37) -> 0 | G53: =SUM(G47+G37) -> 0 | I53: =SUM(I47+I37) -> 0 | J53: =SUM(J47+J37) -> 0
C55: SECTION III. TOTALS:
C56: ** For PREVIOUS FSR totals: In eGrants, go to Budget Tab, then Budget.Summary Tab. In the Financial Status Report (FSR) Summary-To-Date section next to Personnel, click the + sign for the budget line being reported on this form until you see previous hours and dollars. | F56: Number of Hours Worked | G56: Budget Line OOG_Funds
C57: ** TOTAL FROM PREVIOUS FINANCIAL STATUS REPORT (FSR):
C58: TOTAL FOR THIS FSR PERIOD: | F58: =SUM(E53) -> 0 | G58: =SUM(J53) -> 0
C59: CUMULATIVE TOTALS FOR CURRENT FSR: | F59: =SUM(F57:F58) -> 0 | G59: =SUM(G57:G58) -> 0

Sheet for augmentees-OPSG
C3: Office of the Governor
C5: Homeland Security Grants Division
C6: PERSONNEL SUMMARY - AUGMENTEES
J7: Note: Use a separate form for each
C8: GRANTEE/AGENCY NAME: | J8: Personnel budget line.
C9: FSR REPORTING PERIOD:
C10: GRANT NUMBER: | H10: Enter Fringe PERCENTAGE
C11: A. | D11: B. | E11: C. | F11: D. | G11: E. | H11: F. | I11: G. | J11: H.
C12: SECTION I. CURRENT PERIOD EXPENDITURES: | G12: (C. x D.) | I12: (E. x F.) | J12: (E. + G.)
C13: First & Last Name | D13: Pay Period Ending Date | E13: Program Hours | F13: Rate Per Hour | G13: Personnel Cost | H13: Enter Fringe Rate | I13: Fringe | J13: Personnel Plus Fringe
G14: =ROUND(E14*F14,2) -> 0 | I14: =ROUND(G14*H14,2) -> 0 | J14: =+I14+G14 -> 0
G15: =ROUND(E15*F15,2) -> 0 | I15: =ROUND(G15*H15,2) -> 0 | J15: =+I15+G15 -> 0
G16: 0 | I16: 0 | J16: 0
G17: 0 | I17: 0 | J17: 0
G18: 0 | I18: 0 | J18: 0
G19: 0 | I19: 0 | J19: 0
G20: 0 | I20: 0 | J20: 0
G21: 0 | I21: 0 | J21: 0
G22: 0 | I22: 0 | J22: 0
G23: 0 | I23: 0 | J23: 0
G24: 0 | I24: 0 | J24: 0
G25: 0 | I25: 0 | J25: 0
G26: 0 | I26: 0 | J26: 0
G27: 0 | I27: 0 | J27: 0
G28: 0 | I28: 0 | J28: 0
G29: 0 | I29: 0 | J29: 0
G30: 0 | I30: 0 | J30: 0
G31: 0 | I31: 0 | J31: 0
G32: 0 | I32: 0 | J32: 0
G33: 0 | I33: 0 | J33: 0
G34: 0 | I34: 0 | J34: 0
G35: 0 | I35: 0 | J35: 0
C36: ****Place Cursor Here to Insert Row. Then Click Red Button. | G36: 0 | I36: 0 | J36: 0
D37: CURRENT PERIOD EXPENDITURES: | E37: =SUM(E14:E36) -> 0 | G37: =SUM(G14:G36) -> 0 | I37: =SUM(I14:I36) -> 0 | J37: =SUM(J14:J36) -> 0
C39: SECTION II. ADJUSTMENTS:
C40: First & Last Name | D40: Pay Period Ending Date | E40: Program Hours | F40: Rate Per Hour | G40: Personnel Cost | H40: Enter Fringe Rate | I40: Fringe | J40: Personnel Plus Fringe
G41: =ROUND(E41*F41,2) -> 0 | I41: =ROUND(G41*H41,2) -> 0 | J41: =+I41+G41 -> 0
G42: 0 | I42: 0 | J42: 0
G43: 0 | I43: 0 | J43: 0
G44: 0 | I44: 0 | J44: 0
G45: 0 | I45: 0 | J45: 0
C46: ****Place Cursor Here to Insert Row. Then Click Red Button. | G46: 0 | I46: 0 | J46: 0
D47: TOTAL ADJUSTMENTS: | E47: =SUM(E41:E46) -> 0 | G47: =SUM(G41:G46) -> 0 | I47: =SUM(I41:I46) -> 0 | J47: =SUM(J41:J46) -> 0
D49: ADJUSTMENT EXPLANATION:
B50: To ADD ROWS to Section I or II:
B51: Place Cursor In Last Row indicated above
B52: THEN CLICK BUTTON BELOW
D53: TOTAL THIS PERIOD: | E53: =SUM(E47+E37) -> 0 | G53: =SUM(G47+G37) -> 0 | I53: =SUM(I47+I37) -> 0 | J53: =SUM(J47+J37) -> 0
C55: SECTION III. TOTALS:
C56: ** For PREVIOUS FSR totals: In eGrants, go to Budget Tab, then Budget.Summary Tab. In the Financial Status Report (FSR) Summary-To-Date section next to Personnel, click the + sign for the budget line being reported on this form until you see previous hours and dollars. | F56: Number of Hours Worked | G56: Budget Line OOG_Funds
C57: ** TOTAL FROM PREVIOUS FINANCIAL STATUS REPORT (FSR):
C58: TOTAL FOR THIS FSR PERIOD: | F58: =SUM(E53) -> 0 | G58: =SUM(J53) -> 0
C59: CUMULATIVE TOTALS FOR CURRENT FSR: | F59: =SUM(F57:F58) -> 0 | G59: =SUM(G57:G58) -> 0

Sheet Instructions
A1: PERSONNEL OVERTIME SUMMARY - Homeland Security Grants Division, Office of the Governor
A3: INSTRUCTIONS: You may refer to the "SampleForm" tab for an example of a completed OT Summary Form.
A4: The steps below should be completed for the tab labeled either "enter Fringe%" or "enter Fringe$."
A5: Use "enter Fringe$" if payroll reports show a dollar amount for each person; otherwise, use "enter Fringe%."
A6: * Prepare a separate OT Summary for each budget line, i.e. one for Peace-Officers and one for All-Other-Personnel.
A7: * Cumulative Totals in Section III must match numbers entered into eGrants for the Financial Status Report (FSR).
A8: * Once completed, upload a copy of the Personnel OT Summary report to eGrants in either pdf or Excel (xls or xlsx) format.
A9: * When uploading file - use a naming convention that denotes the FSR period (i.e. December 2016 FSR)
A10: * Keep all other supporting documentation for review upon request; submit only this report when entering an FSR.
A12: REPORTING PERIOD: An FSR is required at least Quarterly, but may be submitted Monthly.
A13: The reporting period must reconcile to entries posted to your general ledger, which may consist of multiple pay periods.
A14: For each FSR, report all entries posted to the general ledger for this Monthly or Quarterly FSR reporting period.
A16: SECTION I. CURRENT PERIOD EXPENDITURES:
A17: To add more lines, place the cursor on the last row for Section I and click the ADD ROWS button.
A18: * Enter the names for each individual claiming grant-funded Overtime Hours for this FSR reporting period.
B19: Note: When entering the FSR in eGrants for a Personnel/Overtime budget line, First and Last Names
B20: will also be entered into eGrants in the Personnel-Compensated field of the FSR.
A21: * Enter Pay Period Ending date for each individual claiming grant-funded Overtime Hours for this FSR reporting period.
B22: Note: If an individual earned overtime during multiple pay periods within this FSR reporting period,
C23: list the individual's name separately under each appropriate Pay Period End Date.
A24: * Enter the total Number of Program Overtime Hours worked (and paid) for each individual for each pay period.
A25: * Enter the Overtime Rate Per Hour for each individual for each pay period.
A26: * If using the "enter Fringe%" tab, enter the Fringe Rate for each individual for each pay period. If using the
A27: "enter Fringe$" tab, enter the Fringe Dollar Amount for each individual for each pay period.
A29: SECTION II. ADJUSTMENTS:
A30: To add more lines, place the cursor on the last row for Section II and click the ADD ROWS button.
A31: This section may be used to report any corrections or adjustments necessary from a previous FSR reporting period.
B32: Examples - Adjustments might be necessary in the following circumstances:
C33: - Unclaimed hours from a previous reporting period.
C34: - Correction of timesheet errors from a previous reporting period.
C35: - Adjustments to remove disallowed hours from a previous reporting period.
C36: - Other accounting adjustments to reconcile the FSR with your general ledger.
A38: * Enter the names for each individual whose OT Hours require adjustment for a prior FSR reporting period.
A39: * Enter the prior pay period affected by the adjustment.
A40: * Enter any adjustments to the Number of Overtime Hours Worked from a previous pay period.
B41: Be sure to enter a minus sign (-) for negative adjustments.
A42: * Enter the Overtime Rate Per Hour for each individual for each pay period period affected.
A43: * Enter the Fringe Rate or Fringe Dollar Amount for each individual for each pay period affected.
B44: You may leave this field blank if Fringe costs were not involved in the adjustment.
A46: SECTION III. TOTALS:
A47: * Enter the cumulative Total Overtime Hours Worked and cumulative Total Expenditures from the PREVIOUS FSR.
B49: Steps to locate Cumulative Total Hours and Total Expenditures for this line item from previous FSR in eGrants:
C50: - Open eGrants and log in.
C51: - From the My.Home page, locate the grant record and click the hyperlinked grant number.
C52: - Navigate to the Budget tab and then the Financial.Status.Report sub tab.
C53: - If you have not already created the FSR for this period, do so now.
C54: - Open the Personnel Budget Category by clicking the plus (+) sign.
C55: - Click the plus (+) sign next to the appropriate OT line item.
C56: - The Cumulative Total Hours and Cumulative Total Expenditures will be displayed in the most
C57: recent FSR under the column headings "Number of Hours Worked" and "OOG Funds", respectively.
A59: * The Cumulative Totals for the CURRENT FSR will auto-calculate.
B60: Use these numbers to complete data entry into eGrants for the current FSR.

Sheet SampleForm
C3: Office of the Governor
C5: Homeland Security Grants Division
C6: PERSONNEL OVERTIME SUMMARY
J7: Note: Use a separate form for each
C8: GRANTEE/AGENCY NAME: | D8: Sample Agency | J8: Personnel-Overtime budget line.
C9: FSR REPORTING PERIOD: | D9: 2016-12-31
C10: GRANT NUMBER: | D10: 1234501
C11: A. | D11: B. | E11: C. | F11: D. | G11: E. | H11: F. | I11: G. | J11: H.
C12: SECTION I. CURRENT PERIOD EXPENDITURES: | G12: (C. x D.) | I12: (E. x F.) | J12: (E. + G.)
C13: First & Last Name | D13: Pay Period Ending | E13: Program OT Hours | F13: OT Rate Per Hour | G13: Overtime | H13: Fringe Rate | I13: Fringe | J13: Overtime Plus Fringe
C14: John Doe | D14: 2016-12-10 | E14: 15 | F14: 18 | G14: =ROUND(E14*F14,2) -> 270 | H14: 0.1465 | I14: =ROUND(G14*H14,2) -> 39.56 | J14: =+I14+G14 -> 309.56
C15: Jane Smith | D15: 2016-12-10 | E15: 10 | F15: 25 | G15: =ROUND(E15*F15,2) -> 250 | H15: 0.1465 | I15: =ROUND(G15*H15,2) -> 36.63 | J15: =+I15+G15 -> 286.63
C16: Joe Grant | D16: 2016-12-10 | E16: 5 | F16: 25 | G16: 125 | H16: 0.1465 | I16: 18.31 | J16: 143.31
C17: Jill Funded | D17: 2016-12-10 | E17: 7 | F17: 18 | G17: 126 | H17: 0.1465 | I17: 18.46 | J17: 144.46
G18: 0 | H18: 0.1465 | I18: 0 | J18: 0
C19: John Doe | D19: 2016-12-24 | E19: 10 | F19: 18 | G19: 180 | H19: 0.1465 | I19: 26.37 | J19: 206.37
C20: Jane Smith | D20: 2016-12-24 | E20: 12 | F20: 25 | G20: 300 | H20: 0.1465 | I20: 43.95 | J20: 343.95
C21: Joe Grant | D21: 2016-12-24 | E21: 16 | F21: 25 | G21: 400 | H21: 0.1465 | I21: 58.6 | J21: 458.6
C22: Jill Funded | D22: 2016-12-24 | E22: 20 | F22: 18 | G22: 360 | H22: 0.1465 | I22: 52.74 | J22: 412.74
G23: 0 | I23: 0 | J23: 0
G24: 0 | I24: 0 | J24: 0
G25: 0 | I25: 0 | J25: 0
G26: 0 | I26: 0 | J26: 0
G27: 0 | I27: 0 | J27: 0
G28: 0 | I28: 0 | J28: 0
G29: 0 | I29: 0 | J29: 0
G30: 0 | I30: 0 | J30: 0
G31: 0 | I31: 0 | J31: 0
G32: 0 | I32: 0 | J32: 0
G33: 0 | I33: 0 | J33: 0
G34: 0 | I34: 0 | J34: 0
C35: ****Place Cursor Here to Insert Row. Then Click Button | G35: =ROUND(E35*F35,2) -> 0 | I35: =ROUND(G35*H35,2) -> 0 | J35: =+I35+G35 -> 0
D36: CURRENT PERIOD EXPENDITURES: | E36: =SUM(E14:E35) -> 95 | G36: =SUM(G14:G35) -> 2011 | I36: =SUM(I14:I35) -> 294.62 | J36: =SUM(J14:J35) -> 2305.62
C38: SECTION II. ADJUSTMENTS:
C39: First & Last Name | D39: Pay Period Ending | E39: Program OT Hours | F39: OT Rate Per Hour | G39: Overtime | H39: Fringe Rate | I39: Fringe | J39: Overtime Plus Fringe
C40: John Doe | D40: 2016-11-12 | E40: -2 | F40: 25 | G40: =ROUND(E40*F40,2) -> -50 | H40: 0.1465 | I40: =ROUND(G40*H40,2) -> -7.33 | J40: =+I40+G40 -> -57.33
C41: Jane Smith | D41: 2016-11-12 | E41: 5 | F41: 18 | G41: 90 | H41: 0.1465 | I41: =ROUND(G41*H41,2) -> 13.19 | J41: =+I41+G41 -> 103.19
C42: Jill Funded | D42: 2016-11-12 | E42: -10 | F42: 33.5 | G42: -335 | H42: 0.1465 | I42: -49.08 | J42: -384.08
G43: 0 | I43: 0 | J43: 0
G44: =ROUND(E44*F44,2) -> 0 | I44: =ROUND(G44*H44,2) -> 0 | J44: =+I44+G44 -> 0
C45: ****Place Cursor Here to Insert Row and Click Button | G45: 0 | I45: 0 | J45: 0
D46: TOTAL ADJUSTMENTS: | E46: =SUM(E40:E45) -> -7 | G46: =SUM(G40:G45) -> -295 | I46: =SUM(I40:I45) -> -43.22 | J46: =SUM(J40:J45) -> -338.22
D48: ADJUSTMENT EXPLANATION:
B49: To ADD ROWS to Section I or II:
B50: Place Cursor In Last Row indicated above
B51: THEN CLICK BUTTON BELOW
D52: TOTAL THIS PERIOD: | E52: =SUM(E46+E36) -> 88 | G52: =SUM(G46+G36) -> 1716 | I52: =SUM(I46+I36) -> 251.4 | J52: =SUM(J46+J36) -> 1967.4
C54: SECTION III. TOTALS:
C55: ** For PREVIOUS FSR totals: In eGrants, go to Budget Tab, then Budget.Summary Tab. In the Financial Status Report (FSR) Summary-To-Date section next to Personnel, click the + sign for the budget line being reported on this form until you see previous hours and dollars. | F55: Number of Hours Worked | G55: Budget Line OOG_Funds
C56: ** TOTAL FROM PREVIOUS FINANCIAL STATUS REPORT (FSR): | F56: 97 | G56: 2330
C57: TOTAL FOR THIS FSR PERIOD: | F57: =SUM(E52) -> 88 | G57: =SUM(J52) -> 1967.4
C58: CUMULATIVE TOTALS FOR CURRENT FSR: | F58: =SUM(F56:F57) -> 185 | G58: =SUM(G56:G57) -> 4297.4
